Cogmind - Beta 16.1 @@@ ROGUE MODE // 2026.02.21 @ 20:29:41 Player: Artefact Result: Destroyed by D-53 Grenadier with Mini Grenade Launcher Performance ------------- Evolutions (0) 0 Regions Visited (2) 400 Robots Destroyed (9) 45 Value Destroyed (119) 119 Prototype IDs (0) 0 Alien Tech Used (0) 0 Bonus (0) 0 TOTAL SCORE: 564 Bonus ------- None Cogmind --------- Core Integrity 0/250 Matter 285/300 Energy 100/100 System Corruption 1% Temperature Cool (0) Movement Walking (120) Location -10/Mines Parts ------- > --- POWER (1) -------- (None) > --- PROPULSION (2) --- Aluminum Leg Carbon-fiber Leg > --- UTILITY (2) ------ Small Storage Unit > --- WEAPON (2) ------- (None) > --- INVENTORY (8) ---- Reinforced Ion Engine Compact Wheel Compact Wheel Heat Sink Weight Redist. System Beam Cannon Mini Grenade Launcher Mini Grenade Launcher Peak State ------------ > --- POWER ------------ Reinforced Ion Engine > --- PROPULSION ------- Aluminum Leg Aluminum Leg > --- UTILITY ---------- Small Storage Unit Seismic Detector > --- WEAPON ----------- EM Pulse Gun Beam Cannon > --- INVENTORY -------- Ion Engine Light Ion Engine Compact Wheel Compact Wheel Heat Sink Mini Grenade Launcher Mini Grenade Launcher Mining Laser [Rating: 9] Favorites ----------- Power Ion Engine Engine Ion Engine Propulsion Aluminum Leg Leg Aluminum Leg Utility Small Storage Unit Device Seismic Detector Storage Small Storage Unit Weapon EM Pulse Gun Energy Gun EM Pulse Gun Energy Cannon Beam Cannon Ballistic Gun Assault Rifle Special Weapon Mining Laser Build | -11 -10 -10 ------- Run | Yrd Mat Min Slots Evolved . | . . . Power . | . . . Propulsion . | . . . Utility . | . . . Weapon . | . . . Parts Attached 15 | 8 4 3 Power 4 | 1 2 1 Engine 4 | 1 2 1 Core . | . . . Reactor . | . . . Propulsion 4 | 2 . 2 Treads . | . . . Leg 4 | 2 . 2 Wheel . | . . . Hover . | . . . Flight . | . . . Utility 3 | 3 . . Device 2 | 2 . . Storage 1 | 1 . . Processor . | . . . Hackware . | . . . Protection . | . . . Artifact . | . . . Weapon 4 | 2 2 . Energy Gun 1 | 1 . . Energy Cannon 1 | . 1 . Ballistic Gun 1 | 1 . . Ballistic Cannon . | . . . Launcher . | . . . Special Weapon 1 | . 1 . Impact Weapon . | . . . Slashing Weapon . | . . . Piercing Weapon . | . . . Special Melee Weapon . | . . . Unidentified Prototypes . | . . . Parts Lost 5 | . 1 4 Power 2 | . 1 1 Propulsion . | . . . Utility 1 | . . 1 Weapon 2 | . . 2 Highest Loss Streak 4 | . 1 4 To Critical Strikes . | . . . Average Backups 7 | 4 7 8 Power 1 | 1 1 1 Propulsion 2 | 2 2 2 Utility 1 | . 1 2 Weapon 2 | 1 2 3 Tool/Special . | . . . Unused Backups 10 | . 5 5 Power 2 | . 2 . Propulsion 3 | . 1 2 Utility 1 | . . 1 Weapon 4 | . 2 2 Tool/Special . | . . . Average Slot Usage (%) 98 | . 100 93 Engine 13 | . 14 13 Leg 28 | . 28 28 Device 13 | . 14 12 Storage 14 | . 14 14 Energy Gun 11 | . 11 12 Energy Cannon 6 | . 8 . Ballistic Gun 5 | . 7 . Special Weapon 4 | . . 13 Peak Build Rating 9 | 7 9 9 Average Rating 7 | 5 7 8 On Entrance 5 | . 7 9 Avg Prop Armor Cover (%) . | . . . Naked Turns . | . . . Heaviest Build 21 | 15 21 19 Greatest Support 25 | 20 20 25 Greatest Overweight (x) 1 | 1 1 . Average Overweight (x) . | . . . Largest Inventory Capacity 8 | 8 8 8 Average Capacity 7 | 7 8 8 Most Carried 8 | 8 8 8 Average Carried 7 | 4 7 8 Final Capacity 8 | 8 8 8 Final Carried 8 | 8 8 8 Class Distribution -------------------- 100% | Mutant Dominant Class ---------------- Mutant | -10/Materials Mutant | -10/Mines Resources | -11 -10 -10 ----------- Run | Yrd Mat Min Matter Collected 397 | 322 45 30 Remotely 129 | 129 . . Salvage Created 277 | 172 105 . Parts 15 | 10 5 . Haulers Intercepted . | . . . Recyclers Shooed 1 | 1 . . Parts Field Recycled . | . . . Retrieved Matter . | . . . Parts Self-Destructed . | . . . Prevented . | . . . Parts Restored . | . . . Kills | -11 -10 -10 ------- Run | Yrd Mat Min Combat Hostiles Destroyed 2 | . 2 . Guns 1 | . 1 . Cannons 1 | . 1 . Classes Destroyed 5 | 3 2 . Worker 1 | 1 . . Tunneler 4 | 4 . . Recycler 1 | 1 . . Watcher 1 | . 1 . Grunt 2 | . 2 . Best Kill Streak 3 | 3 2 . Combat Bots Only 1 | . 1 . Max Kills in Single Turn 2 | 2 1 . Gunslinging . | . . . Exploded . | . . . Melee . | . . . Uniques/NPCs Destroyed . | . . . Combat | -11 -10 -10 -------- Run | Yrd Mat Min Hostile Shots Fired 30 | . 18 12 Missed 6 | . 6 . Hits 24 | . 12 12 Projectile 24 | . 12 12 AOE 15 | . 3 12 Part Disruptions 1 | . 1 . Damage Taken 671 | . 214 457 Core 264 | . 50 214 Absorbed by Shields . | . . . Regen/Repaired (Parts) 11 | . 11 . Core Remaining (%) 100 | 100 . . Volleys Fired 30 | 14 14 2 Largest 2 | 2 2 1 Hottest 100 | 60 100 40 Shots Fired 58 | 28 28 2 Gun 44 | 28 14 2 Cannon 14 | . 14 . Launcher . | . . . Special . | . . . Kinetic 19 | 14 5 . Thermal 14 | . 14 . Explosive . | . . . Electromagnetic 25 | 14 9 2 Robot Hit Streak 9 | 3 9 5 Robot Miss Streak 7 | 7 5 1 Penetration Max . | . . . Secondary Targets . | . . . Shots Hit Robots 28 | 12 15 1 Core Hits 10 | 6 3 1 Critical Kills . | . . . Critical Parts Destroyed . | . . . Critical Strikes 1 | . 1 . Corrupt 1 | . 1 . Melee Attacks . | . . . Impact . | . . . Slashing . | . . . Piercing . | . . . Sneak Attacks . | . . . Combat Hostiles . | . . . Follow-up Attacks . | . . . Damage Inflicted 524 | 258 254 12 Guns 280 | 162 106 12 Cannons 147 | . 147 . Explosions 96 | 96 . . Melee . | . . . Ramming 1 | . 1 . Kinetic 119 | 82 37 . Thermal 243 | 96 147 . Explosive . | . . . Electromagnetic 161 | 80 69 12 Impact . | . . . Slashing . | . . . Piercing . | . . . Highest Corruption 1 | . 1 1 Average Corruption 1 | . 1 1 Corruption Purged . | . . . Corruption Blocked . | . . . Effects 4 | . 3 1 Message Errors 2 | . 2 . Heat Flow Errors 1 | . . 1 Data Loss (minor) 1 | . 1 . Overload Shots . | . . . Overflow Damage 16 | 16 . . Projectiles . | . . . Explosions 16 | 16 . . Melee . | . . . Knockbacks . | . . . Impact . | . . . Kinetic . | . . . Secondary . | . . . Self-Inflicted Damage . | . . . Shots . | . . . Rammed . | . . . Targets Rammed 1 | . 1 . Kicked 1 | . 1 . Crushed . | . . . Highest Temperature 303 | . 303 210 Average Temperature 99 | . 103 87 Received Heat Transfer 84 | . 84 . Siege Activations . | . . . Martial Activations . | . . . Shielding Activations . | . . . Robots Disrupted . | . . . Combat Hostiles . | . . . Robots Corrupted . | . . . Combat Hostiles . | . . . Parts Fried 1 | 1 . . Impact Corruptions . | . . . Robots Melted . | . . . Combat Hostiles . | . . . Parts Melted . | . . . Heat Transferred 446 | 150 296 . Parts Sabotaged . | . . . Parts Stolen . | . . . Parts Stripped . | . . . Power Chain Reactions 1 | 1 . . Alert | -11 -10 -10 ------- Run | Yrd Mat Min Maximum Alert Level . | . . . Low Security (%) 100 | 100 100 100 Level 1 . | . . . Level 2 . | . . . Level 3 . | . . . Level 4 . | . . . Level 5 . | . . . High Security . | . . . Max Security . | . . . Peak Influence 37 | 15 37 . Initial . | . . . Average 3 | 2 6 . Influence Increases 87 | 30 57 . Destroy 0b10 Robot/C 40 | . 40 . Destroy 0b10 Robot/NC 35 | 30 5 . Destroy Leader 12 | . 12 . Influence Decreases 87 | 30 57 . Time Decay 87 | 30 57 . Squads Dispatched 1 | . 1 . Investigation 1 | . 1 . Extermination . | . . . Reinforcement . | . . . Assault . | . . . Garrison . | . . . Intercept . | . . . Searches Triggered . | . . . Construction Impeded . | . . . Haulers Reinforced . | . . . Active Scanning Responses . | . . . Cargo Convoy Interrupts . | . . . Stealth | -11 -10 -10 --------- Run | Yrd Mat Min Distress Signals . | . . . Communications Jammed . | . . . Distress Signals . | . . . Times Spotted 9 | . 6 3 Peak Tracking Total 3 | . 3 2 Tactical Retreats . | . . . Traps | -11 -10 -10 ------- Run | Yrd Mat Min Traps Triggered . | . . . Indirectly . | . . . Trap Hack Attempts . | . . . Triggered . | . . . Disarmed . | . . . Reprogrammed . | . . . Reused . | . . . Traps Extracted . | . . . Installed . | . . . Triggered . | . . . Machines | -11 -10 -10 ---------- Run | Yrd Mat Min Machines Disabled . | . . . Max in Single Turn . | . . . Machines Repaired . | . . . Machines Dismantled . | . . . Machines Sabotaged . | . . . Overloaded Fab Kills . | . . . Hacking | -11 -10 -10 --------- Run | Yrd Mat Min Machines Accessed 4 | . 4 . Terminals 2 | . 2 . Fabricators . | . . . Repair Stations 1 | . 1 . Recycling Units 1 | . 1 . Scanalyzers . | . . . Garrison Access . | . . . Total Hacks 8 | . 8 . Successful 5 | . 5 . Failed 3 | . 3 . Catastrophic 1 | . 1 . Database Lockouts . | . . . Manual 4 | . 4 . Terminals 3 | . 3 . Fabricators . | . . . Repair Stations 3 | . 3 . Recycling Units 2 | . 2 . Scanalyzers . | . . . Garrison Access . | . . . Terminal Hacks 1 | . 1 . Robot Analysis 1 | . 1 . Fabricator Hacks . | . . . Repair Station Hacks 2 | . 2 . Scan Component 1 | . 1 . Repair 1 | . 1 . Recycling Unit Hacks 2 | . 2 . Process 1 | . 1 . Retrieve Components 1 | . 1 . Scanalyzer . | . . . Garrison Access Hacks . | . . . Unauthorized Hacks . | . . . Terminals . | . . . Fabricators . | . . . Repair Stations . | . . . Recycling Units . | . . . Scanalyzers . | . . . Garrison Access . | . . . Data Cores Recovered . | . . . Used . | . . . Hacking Detections 2 | . 2 . Full Trace Events 1 | . 1 . Feedback Events . | . . . Feedback Blocked . | . . . Robot Schematics Acquired . | . . . Robots Built . | . . . Authchips . | . . . Time . | . . . Total Robot Build Rating . | . . . Part Schematics Acquired . | . . . Parts Built . | . . . Authchips . | . . . Time . | . . . Total Part Build Rating . | . . . Part Studies Acquired . | . . . Parts Repaired 1 | . 1 . Time 26 | . 26 . Parts Recycled . | . . . Recycled Matter . | . . . Retrieved Matter . | . . . Retrieved Components 3 | . 3 . Parts Scanalyzed . | . . . Part Schematics Acquired . | . . . Parts Damaged . | . . . Bothacking | -11 -10 -10 ------------ Run | Yrd Mat Min Used RIF Installer . | . . . Robots Hacked . | . . . Non-combat . | . . . Combat . | . . . Robot Hacks Applied . | . . . Relay Couplers Released . | . . . Fabnet Peak Effective % . | . . . Robots Rewired . | . . . Allies Hacked . | . . . Hacks Repelled . | . . . Allies | -11 -10 -10 -------- Run | Yrd Mat Min Total Allies 2 | . . 2 Largest Group 2 | . . 2 Highest-Rated Group 46 | . . 46 Highest-Rated Ally 31 | . . 31 Total Orders . | . . . Ally Attacks 2 | . . 2 Total Damage . | . . . Kills . | . . . Allies Corrupted . | . . . Allies Melted . | . . . Intel | -11 -10 -10 ------- Run | Yrd Mat Min Active Infowar (turns) 532 | 58 356 118 Seismic 532 | 58 356 118 Robot Analysis Total 1 | . 1 . Derelict Logs Recovered . | . . . Drone Launches . | . . . Drone Recoveries . | . . . Exploration | -11 -10 -10 ------------- Run | Yrd Mat Min Turns Passed 643 | 153 356 134 Spaces Moved 388 | 70 218 100 Core 3 | 3 . . Treads . | . . . Legs 385 | 67 218 100 Wheels . | . . . Hover . | . . . Flight . | . . . Fastest Speed 50 | 50 120 120 Average Speed 122 | 131 120 120 Slowest Speed 190 | 190 190 120 Overloaded Moves . | . . . Propulsion Burnouts . | . . . Robots Hopped . | . . . Potential Cave-ins . | . . . Cave-ins Triggered . | . . . Exploration Rate (%) 27 | 5 47 30 Regions Visited 2 Branch Regions 1 Pre-discovered Areas . | . . . Known Exits Taken . | . . . Unknown Exits Taken 2 | 1 1 . Scrap Searched 1 | . . 1 Spaces Dug . | . . . Terrain Destroyed 3 | 3 . . Melee . | . . . Projectile . | . . . AOE 3 | 3 . . Terrain Rammed . | . . . Walls Destroyed . | . . . Machines Disabled . | . . . Actions | -11 -10 -10 --------- Run | Yrd Mat Min Total 497 | 100 284 113 Wait 33 | . 28 5 Move 386 | 69 217 100 Hop . | . . . Pick Up 18 | 8 10 . Fast Attach 8 | 7 . 1 Attach 2 | 1 1 . Detach 1 | 1 . . Swap 6 | . 4 2 Drop 12 | . 9 3 Fire 30 | 14 14 2 Melee . | . . . Ram . | . . . Kick 1 | . 1 . Crush . | . . . Escape Stasis . | . . . Rewire . | . . . Trap . | . . . Miscellaneous . | . . . Route ------- -11/Scrapyard -10/Materials (discovered 3 exits: [*Mat] / [*Min x2]) -10/Mines History --------- Turn | Location | Event 32 | -11/Scrapyard | Discovered new exit (range 16) 154 | -11/Scrapyard | Entered Materials 205 | -10/Materials | Repaired Tractor Beam 274 | -10/Materials | Discovered new exit (range 12) 309 | -10/Materials | Build established: Mutant 411 | -10/Materials | Discovered new exit (range 5) 480 | -10/Materials | Discovered new exit (range 13) 510 | -10/Materials | Entered Mines 539 | -10/Mines | Assembled infested the area 592 | -10/Mines | Joined a pair of Derelicts in attacking an 0b10 outpost 641 | -10/Mines | Core integrity fell below 50% 642 | -10/Mines | Core integrity fell below 20% 644 | -10/Mines | Destroyed by D-53 Grenadier with Mini Grenade Launcher Last Messages --------------- 00618_ XG-03V(z) destroyed. 00622_ VT-FYR(g): "By picking off the easy targets here, we can draw a trickle of reinforcements and keep pressure off our more trafficked cave areas." 00623_ AS-NI1(g) destroyed. 00624_ D-53 Grenadier suffers critical hit (Burn). 00625_ TS-SSU(g) destroyed. 00625_ VT-FYR(g) destroyed. 00626_ D-53 Grenadier heat damages Cmb. Airjet, Imp. Light Armor Plating, Launcher Guidance Computer, Mni. Grenade Launcher. 00628_ Seismic Detector destroyed. 00628_ EM Pulse Gun destroyed. 00628_ Machine disabled. 00631_ Mining Laser destroyed. 00634_ Dropped Aluminum Leg. 00635_ The unstable cave ceiling collapses. 00637_ Dropped Carbon-fiber Leg. 00641_ U-05 Engineer builds a Wall. 00642_ Imp. Ion Engine destroyed. 00643_ The unstable cave ceiling collapses. Map ----- +----------------------------------------------------+ | ?????# #?????????????????????????????????????? | | ?????# ##?????????????????????????????????????? | | ?????# ##??????????????????????????????????????? | | ?????# ##???????????????????????????????????????? | | ?????# ######???????????????????????????????????? | | ?????# #???????????????????????????????????? | | ?????# #### #???????????????????????????????????? | | ?????# #????????????????????????????????????????? | | ?????# #????????????????????????????????????????? | | ??#### #????????????????????????????????????????? | | ?## # #????????????????????????????????????????? | | ?# #????????????????????????????????????????? | | ?# ##??######???????????????????????????????? | | ?## #### ##??????????????????????????????? | | ??## ## #??????????????????????????????? | | ???## #??????????????????????????????? | | ???## ##??????????????????????????????? | | ???# ##???????????????????????????????? | | ??# ############?#???????????????????? | | ??# " #???????????????????? | | ??## ####%###### #???????????????????? | | ???## #??#"####?? #???????????????????? | | ????## #??# ## ## #???????????????????? | | ?????## #####d #???????????????????? | | ??????## ### ##??????????????????? | | ???????## ##?# @ ######?????????????? | | ????????# ##### d t ?????????? | | ????????# #?# #########???????????? | | ????????####### u #???????????????????? | | ?????????????# # #???????????????????? | | ?????????????# #???????????????????? | | ?????????????# ] #??????????????????? | | ?????????????## #??????????????????? | | ?????????????# ##??????????????????? | | ?????????????## ## # ###???????????????????? | | ??????????????########## ##?????????????????????? | | ???????????????????????####??????????????????????? | | ?????????????????????????????????????????????????? | | ?????????????????????????????????????????????????? | | ?????????????????????????????????????????????????? | | | | | | | | | | | | | | | | | | | | | +----------------------------------------------------+ Best States ------------- Heat Dissipation 25 Energy Generation 12 Energy Capacity 265 Matter Stores 300 Matter Capacity 300 Sight Range 16 Terrain Scan Density 10 Evasion (%) 55 Item Schematics ----------------- None Robot Schematics ------------------ None Fabricated ------------ Nothing Repaired ---------- Tractor Beam | 56% | -10/Materials Studied --------- None Alien Tech Used ----------------- None Achievements -------------- None Challenges ------------ None Game ------ Seed MetaMappingActivator Manual? 0 Play Time 00:16:29 Cumulative 6.5 hours Start 2026.02.21 @ 20:15:11 End 2026.02.21 @ 20:29:41 Sessions 1 Manual Loads 0 Difficulty Rogue Special Mode None Game No. 10 Rogue 10 Adventurer 0 Explorer 0 Win Type - Total 0 Types 0/0/0/0/0/0/0/0/0/0 Lore% 2 Gallery% 10 Achievement% 12 Wizard Run 0 Options --------- Layout 0 ASCII 1 Keyboard 1 Movement Arrows Keybinds 1 Fullscreen 2 Font 36/Terminus Map View 76x50 Zoom Use 0% Tactical HUD 1 Map Filters NONE Filters NONE Steam 1 RUN: 32058d9c-4fdd-4268-90d3-5541c1ece694